bitfinex/quotes_ETHUSD_20240902
["timestamp","ask_amount","ask_price","bid_price","bid_amount"]
[1725306462916,2.3031,2530.6,2530.2,3.95216]
[1725306463153,2.3031,2530.6,2530.3,0.16425279]
[1725306463531,6.25474,2530.6,2530.2,3.95216]
[1725306463769,6.25474,2530.6,2530.4,0.16417247]
[1725306463933,6.25474,2530.6,2530.3,0.16425279]
[1725306464261,6.25474,2530.6,2530.2,3.95216]
[1725306464465,6.25474,2530.6,2530.4,0.16417247]
[1725306464668,6.25474,2530.6,2530.3,0.16425279]
[1725306464821,6.25474,2530.6,2530.5,0.16417539]
[1725306465223,6.25474,2530.6,2530.2,3.95216]
[1725306465467,6.25474,2530.6,2530.5,0.16418179]
[1725306465630,6.25474,2530.6,2530.2,3.95216]
[1725306465837,6.25474,2530.6,2530.5,0.16418179]
[1725306466045,6.25474,2530.6,2530.2,3.95216]
[1725306466259,6.25474,2530.6,2530.5,0.16418179]
[1725306466415,6.25474,2530.6,2530.2,3.95216]
[1725306467060,6.25474,2530.6,2530.3,0.16454092]
[1725306467367,6.25474,2530.6,2530.2,3.95216]
[1725306467577,6.25474,2530.6,2530.4,0.1644606]
[1725306467867,6.25474,2530.6,2530.3,0.16454092]
[1725306468167,6.25474,2530.6,2530.4,0.1644606]
[1725306468553,6.25474,2530.6,2530.2,3.95216]
[1725306468864,6.25474,2530.6,2530.5,0.16438028]
[1725306469372,6.25474,2530.6,2530.2,3.95216]
[1725306469540,6.25474,2530.6,2530.5,0.16435467]
[1725306469733,6.25474,2530.6,2530.2,3.95216]
[1725306469938,10.20645,2530.6,2530.3,0.16451531]
[1725306470236,10.20645,2530.6,2530.2,3.95216]
[1725306470583,10.20647,2530.6,2530.4,0.16443499]
[1725306470736,6.25474,2530.6,2530.3,0.16451531]
[1725306471072,6.25474,2530.6,2530.2,3.95216]
[1725306471271,6.25474,2530.6,2530.4,0.16443499]
[1725306471571,6.25474,2530.6,2530.3,0.16451531]
[1725306471864,6.25474,2530.6,2530.5,0.16435467]
[1725306472340,6.25474,2530.6,2530.2,3.95216]
[1725306472542,6.25474,2530.6,2530.3,0.16451531]
[1725306472847,3.95184,2530.5,2530.3,0.16451531]
[1725306473050,3.95184,2530.5,2530.0,11.23247]
[1725306473293,3.95184,2530.5,2530.0,12.995063]
[1725306473488,3.95184,2530.5,2530.1,0.16468238]
[1725306476310,3.95184,2530.5,2530.1,4.11705238]
[1725306476499,6.25475,2530.6,2530.1,4.11705238]
[1725306476704,6.25475,2530.6,2530.2,1.71121154]
[1725306476899,10.20648,2530.6,2530.3,0.1612268]
[1725306477211,6.25475,2530.6,2530.3,0.1612268]
[1725306477386,6.25475,2530.6,2530.2,1.71121154]
[1725306477573,6.25475,2530.6,2530.4,0.16114648]
[1725306477773,6.25475,2530.6,2530.3,0.1612268]
[1725306477989,6.25475,2530.6,2530.5,0.16106616]
[1725306478203,6.25475,2530.6,2530.4,0.16114648]
[1725306478515,6.25475,2530.6,2530.5,0.16106616]
[1725306478722,6.25475,2530.6,2530.1,3.95237]
[1725306479009,6.25475,2530.6,2530.2,1.85605043]
[1725306480514,6.25475,2530.6,2530.2,5.80828043]
[1725306482241,3.95165,2530.6,2530.2,5.80828043]
[1725306482541,3.95149,2530.7,2530.2,8.19498043]
[1725306483278,3.95149,2530.7,2530.3,3.95208]
[1725306483545,3.95149,2530.7,2530.4,0.16064198]
[1725306485770,6.23785,2530.8,2530.4,0.16064198]
[1725306485771,3.95163,2530.6,2530.4,0.16064198]
[1725306485922,2.2864,2530.5,2530.4,0.16064198]
[1725306486121,2.2864,2530.5,2530.2,3.95224]
[1725306486436,2.2864,2530.5,2530.3,0.1607223]
[1725306486822,2.2864,2530.5,2530.2,3.95224]
[1725306487024,2.2864,2530.5,2530.4,0.16064198]
[1725306487227,2.2864,2530.5,2530.3,0.1607223]
[1725306487459,2.2864,2530.5,2530.4,0.16064198]
[1725306487831,2.2864,2530.5,2530.2,3.95224]
[1725306488152,2.2864,2530.5,2530.3,0.1607223]
[1725306488542,2.2864,2530.5,2530.2,3.95224]
[1725306488727,6.23822,2530.5,2530.3,0.1607223]
[1725306488928,3.95202,2530.4,2530.0,11.23242]
[1725306489158,3.95202,2530.4,2530.0,3.95242]
[1725306489429,3.95202,2530.4,2530.1,0.16084455]
[1725306491567,3.95202,2530.4,2530.2,0.1610524]
[1725306492164,3.95202,2530.4,2530.3,0.16097848]
[1725306492376,6.29132,2530.4,2530.3,0.16097848]
[1725306492731,6.29132,2530.4,2529.9,3.9527]
[1725306492932,6.29132,2530.4,2530.0,0.56108225]
[1725306493163,6.29132,2530.4,2530.0,0.16121308]
[1725306495976,4.09896905,2530.1,2530.0,0.16121308]
[1725306496322,12.00378905,2530.1,2530.0,0.16121308]
[1725306496484,12.00378905,2530.1,2529.4,3.95349]
[1725306496485,2.3393,2529.8,2529.5,0.39994548]
[1725306496818,6.2919,2530.0,2529.5,7.90654]
[1725306497016,3.95238,2530.2,2529.4,2.4439]
[1725306497017,6.29168,2530.2,2529.6,1.43497564]
[1725306497187,6.29168,2530.2,2529.3,3.0054193]
[1725306497188,6.29165,2530.2,2529.7,6.39692]
[1725306497509,6.29165,2530.2,2529.8,3.95279]
[1725306498891,6.29165,2530.2,2529.7,7.2125789]
[1725306499071,6.29165,2530.2,2529.7,11.1655389]
[1725306501869,3.95235,2530.2,2529.8,3.95286]
[1725306503209,3.95235,2530.2,2529.9,0.15914297]
[1725306504712,3.95211,2530.3,2529.9,0.15914297]
[1725306504946,6.29135,2530.4,2529.9,5.24422516]
[1725306504947,6.29131,2530.4,2529.9,5.24422516]
[1725306505221,3.0,2530.3,2529.9,5.24422516]
[1725306507817,3.0,2530.3,2529.9,0.15914297]
[1725306507993,6.95218,2530.3,2529.9,0.15914297]
[1725306508577,2.4764,2530.2,2529.9,0.15914297]
[1725306513329,6.42872,2530.2,2529.9,0.15914297]
[1725306513520,3.95256,2530.0,2529.9,0.15914297]
[1725306513816,6.42867,2530.2,2529.7,3.95293]
[1725306514027,6.42867,2530.2,2529.9,0.15392793]
[1725306514207,6.42867,2530.2,2529.8,0.15400828]
[1725306514414,6.42867,2530.2,2530.0,0.15384758]
[1725306514638,3.95256,2530.0,2529.9,0.15392793]
[1725306514840,3.95273,2529.9,2529.5,3.95331]
[1725306515348,3.95273,2529.9,2529.2,0.3966]
[1725306515349,3.95305,2529.7,2529.2,4.35031]
[1725306515555,3.95305,2529.7,2529.2,8.30401]
[1725306516058,6.42578,2529.8,2529.2,8.30401]
[1725306516059,10.3788,2529.8,2529.2,8.30401]
[1725306516807,6.42578,2529.8,2529.2,8.30401]
[1725306517646,10.37877,2529.8,2529.2,7.90741]
[1725306517948,2.4729,2529.8,2529.3,3.95365]
[1725306518162,4.98212599,2530.8,2529.5,2.4483]
[1725306518163,2.4304,2530.1,2529.5,2.4483]
[1725306518377,2.4304,2530.3,2529.6,4.77103529]
[1725306518529,2.4304,2530.3,2529.7,3.95292]
[1725306518853,6.3826,2530.3,2529.8,6.55538455]
[1725306519050,3.0,2530.2,2529.8,6.55538455]
[1725306519240,3.0,2530.2,2529.8,2.60254455]
[1725306519241,6.95226,2530.2,2529.8,2.60254455]
[1725306525736,3.0,2530.2,2529.8,2.60254455]
[1725306525940,3.0,2530.2,2529.8,6.55541455]
[1725306526550,6.38259,2530.3,2529.8,6.55541455]
[1725306526749,10.33478,2530.3,2529.8,6.55541455]
[1725306527329,6.38259,2530.3,2529.8,6.55541455]
[1725306527528,10.3348,2530.3,2529.8,6.55541455]
[1725306527730,3.95219,2530.3,2529.8,6.55541455]
[1725306529150,7.90439,2530.3,2529.8,6.55541455]
[1725306529562,3.95218,2530.3,2529.8,6.55541455]
[1725306530275,7.90436,2530.3,2529.8,6.55541455]
[1725306531190,3.95218,2530.3,2529.8,6.55541455]
[1725306531650,7.90438,2530.3,2529.8,6.55541455]
[1725306534382,3.95218,2530.3,2529.8,6.55541455]
[1725306534558,7.90438,2530.3,2529.8,6.55541455]
[1725306536405,3.95218,2530.3,2529.9,3.95268]
[1725306536767,3.95218,2530.3,2530.0,0.15403274]
[1725306540319,5.45466591,2530.3,2530.0,0.15403274]
[1725306540627,3.95241,2530.1,2529.5,4.34994]
[1725306540937,3.95274,2529.9,2529.5,4.34994]
[1725306541788,6.9514779,2530.0,2529.5,8.30315]
[1725306541990,3.95257,2530.0,2529.5,4.34981]
[1725306542497,3.95257,2530.0,2529.5,8.30309]
[1725306544286,3.95257,2530.0,2529.5,4.34981]
[1725306544491,4.979358,2530.0,2529.5,4.34981]
[1725306546135,4.979358,2530.0,2529.5,8.30307]
[1725306546286,3.95257,2530.0,2529.5,8.30307]
[1725306547313,3.95257,2530.0,2529.5,4.34981]
[1725306548221,3.95257,2530.0,2529.6,0.15427116]
[1725306548925,3.95275,2529.9,2529.6,0.15427116]
[1725306549223,6.22615,2529.9,2529.6,0.15427116]
[1725306550690,6.22615,2529.9,2529.4,6.3334]
[1725306550883,6.22615,2529.9,2529.7,0.15415925]
[1725306551089,6.22615,2529.9,2529.5,3.95334]
[1725306551593,6.22615,2529.9,2529.6,0.15423962]
[1725306552906,3.95289,2529.8,2529.6,0.15423962]
[1725306553255,3.95289,2529.8,2529.7,0.15440828]
[1725306553554,7.90583,2529.8,2529.7,0.15440828]
[1725306553851,7.90577,2529.8,2529.7,0.15440828]
[1725306554056,3.95314,2529.7,2529.3,7.28]
[1725306554252,3.95314,2529.7,2529.2,6.61358]
[1725306554451,3.95319,2529.6,2529.2,0.3964]
[1725306554608,3.95336,2529.5,2529.2,0.3964]
[1725306557147,6.22659,2529.6,2529.2,0.3964]
[1725306557647,6.22659,2529.6,2529.1,10.17118]
[1725306559761,3.95319,2529.6,2529.2,4.35376039]
[1725306559966,3.95319,2529.6,2529.2,3.95379]
[1725306560480,3.95306,2529.7,2529.3,3.95364]
[1725306561165,6.4173,2530.5,2529.9,3.95264]
[1725306561380,6.4173,2530.5,2529.8,2.3423]
[1725306561381,3.95165,2530.6,2530.0,4.581944]
[1725306561524,3.95165,2530.6,2530.1,3.95241]
[1725306562532,3.0,2530.5,2530.1,3.95241]
[1725306563511,3.0,2530.5,2530.2,0.15386605]
[1725306563637,3.9516,2530.7,2530.2,4.10604605]
[1725306563840,6.41674,2530.8,2530.2,6.44834605]
[1725306564029,9.66221905,2530.9,2530.4,3.95193]
[1725306564431,9.66221905,2530.9,2530.5,0.15314625]
[1725306564780,6.92368096,2530.9,2530.5,0.15314625]
[1725306565146,3.0,2530.8,2530.5,0.15314625]
[1725306566180,8.71063905,2531.1,2530.6,3.9516]
[1725306566484,6.95102,2531.0,2530.6,3.9516]
[1725306566639,8.3545689,2531.0,2530.7,0.15280053]
[1725306568799,4.4035489,2531.0,2530.7,0.15280053]
[1725306568999,3.0,2531.0,2530.7,0.15280053]
[1725306569358,0.50368463,2531.3,2530.7,0.15280053]
[1725306569359,3.95055,2531.3,2530.8,3.9512]
[1725306569605,3.0,2531.2,2530.9,0.15263994]
[1725306569901,3.95039,2531.4,2531.0,2.4782]
[1725306570273,3.95039,2531.4,2531.1,0.15242832]
[1725306571062,3.0,2531.3,2531.1,0.15242832]
[1725306571970,6.95055,2531.3,2531.1,0.15242832]
[1725306573400,12.32316696,2531.3,2530.7,3.95135]
[1725306573599,12.32316696,2531.3,2530.8,0.15249689]
[1725306573600,11.05711905,2531.3,2530.8,0.15249689]
[1725306573774,11.05711905,2531.3,2530.7,7.90273]
[1725306573973,11.05711905,2531.3,2530.8,4.10379689]
[1725306575495,11.05711905,2531.3,2530.8,0.15249689]
[1725306575496,3.9507,2531.2,2530.8,0.15249689]
[1725306575904,3.9507,2531.2,2530.7,3.95135]
[1725306575905,3.9507,2531.2,2530.7,7.90269]
[1725306576087,3.9507,2531.2,2530.9,0.15189963]
[1725306576323,3.9507,2531.2,2530.8,0.15197992]
[1725306576623,3.9507,2531.2,2530.9,0.15189963]
[1725306582661,3.9507,2531.2,2530.7,3.95146]
[1725306582952,7.90147,2531.2,2531.0,0.15181934]
[1725306583167,1.75966905,2531.1,2530.4,2.3579]
[1725306583452,3.95123,2530.9,2530.4,6.30976]
[1725306584147,3.95123,2530.9,2530.4,2.3579]
[1725306588453,7.90251,2530.9,2530.4,2.3579]
[1725306588625,3.95136,2530.8,2530.4,2.3579]
[1725306588951,3.95136,2530.8,2530.3,7.28]
[1725306590179,6.42137,2530.7,2530.1,7.28]
[1725306590364,3.0,2530.6,2530.1,7.28]
[1725306590979,6.95171,2530.6,2530.1,7.28]
[1725306592279,3.9518,2530.5,2530.1,7.28]
[1725306592508,3.9518,2530.5,2530.0,2.8234]
[1725306593278,3.9518,2530.5,2530.1,0.14838598]
[1725306594358,3.95214,2530.3,2530.1,0.14838598]
[1725306594574,3.9521,2530.3,2530.1,0.14838598]
[1725306594737,3.9521,2530.3,2529.8,9.6167]
[1725306594937,7.9043,2530.3,2530.2,0.14832479]
[1725306595458,7.9043,2530.3,2529.8,9.6167]
[1725306595632,7.9043,2530.3,2530.2,0.14832479]
[1725306595837,7.9043,2530.3,2529.8,9.6167]
[1725306596049,7.9043,2530.3,2529.9,0.14859135]
[1725306596245,6.40105,2530.4,2529.9,1.12512049]
[1725306596463,3.95189,2530.5,2529.9,5.07774049]
[1725306599866,3.95189,2530.5,2529.9,1.12512049]
[1725306600181,3.95197,2530.4,2529.9,1.12512049]
[1725306600398,3.95235,2530.2,2529.9,0.14859135]
[1725306603597,3.9525,2530.1,2529.9,0.14859135]
[1725306603808,3.95235,2530.2,2529.9,0.14859135]
[1725306604307,5.3317,2530.6,2530.0,3.95256]
[1725306604458,6.95157,2530.7,2530.1,2.79041514]
[1725306604652,3.9518,2530.5,2530.1,2.93913301]
[1725306605501,3.95164,2530.6,2530.1,2.93913301]
[1725306605873,3.0,2530.5,2530.1,2.93913301]
[1725306606302,6.95181,2530.5,2530.1,2.93913301]
[1725306609468,3.0,2530.5,2530.1,2.93913301]
[1725306609780,3.95165,2530.6,2530.1,6.89149301]
[1725306612167,7.09136905,2530.8,2530.3,3.95203]
[1725306612168,6.95133,2530.8,2530.3,3.95203]
[1725306612368,3.0,2530.7,2530.4,3.95192]
[1725306612589,3.95116,2530.9,2530.4,4.10010328]
[1725306612809,3.0,2530.8,2530.4,4.10010328]
[1725306613331,6.95139,2530.8,2530.4,0.14818328]
[1725306617808,3.95147,2530.7,2530.4,0.14818328]
[1725306618016,3.95169,2530.6,2530.4,0.14818328]
[1725306618338,3.95169,2530.6,2530.1,6.84283514]
[1725306618519,3.95169,2530.6,2530.5,0.14791789]
[1725306618820,3.95169,2530.6,2530.1,6.84283514]
[1725306619009,3.95169,2530.6,2530.5,0.14791789]
[1725306619378,3.95169,2530.6,2530.1,6.84283514]
[1725306619580,3.95169,2530.6,2530.5,0.14791789]
[1725306619823,3.95169,2530.6,2530.1,6.43272]
[1725306620031,3.95169,2530.6,2530.5,0.14791789]
[1725306620231,3.95169,2530.6,2530.1,6.43272]
[1725306620436,3.95169,2530.6,2530.5,0.14791789]
[1725306620911,3.95169,2530.6,2530.1,6.43272]
[1725306621091,3.95169,2530.6,2530.5,0.14791789]
[1725306621292,3.95169,2530.6,2530.1,6.43272]
[1725306621489,3.95169,2530.6,2530.5,0.14791789]
[1725306621746,3.95169,2530.6,2530.1,6.43272]
[1725306621911,3.95169,2530.6,2530.5,0.14791789]
[1725306622395,3.95169,2530.6,2530.1,6.43272]
[1725306622908,3.95169,2530.6,2530.2,0.14815886]
[1725306623128,3.95182,2530.5,2530.2,0.14815886]
[1725306623327,3.95196,2530.4,2530.2,0.14815886]
[1725306623644,3.95216,2530.3,2529.9,2.7773]
[1725306626039,3.95216,2530.3,2529.9,2.3809]
[1725306626189,3.95216,2530.3,2529.9,3.01427]
[1725306627409,3.95216,2530.3,2529.7,1.24395657]
[1725306627410,5.71189905,2530.3,2529.7,2.4015]
[1725306627645,6.43473,2530.1,2529.6,0.3964]
[1725306628078,3.95264,2530.0,2529.6,0.3964]
[1725306631530,3.95264,2530.0,2529.5,6.35483]
[1725306631977,6.43473,2530.1,2529.5,12.23095366]
[1725306632436,10.38724,2530.1,2529.5,8.27762366]
[1725306632765,10.38724,2530.1,2529.5,12.23088366]
[1725306632978,6.43471,2530.1,2529.5,12.23088366]
[1725306633575,10.3872,2530.1,2529.5,12.23088366]
[1725306634444,6.43469,2530.1,2529.5,12.23088366]
[1725306634650,10.38718,2530.1,2529.5,12.23088366]
[1725306635360,3.95257,2530.0,2529.5,8.27762366]
[1725306636048,3.95272,2529.9,2529.5,8.27762366]
[1725306636245,3.95272,2529.9,2529.5,4.32437366]
[1725306638046,3.95304,2529.7,2529.5,2.4015]
[1725306638250,7.90616,2529.7,2529.6,0.19322493]
[1725306638474,3.95321,2529.6,2529.4,7.6764]
[1725306638823,3.95321,2529.6,2529.5,0.19330742]
[1725306640188,3.95304,2529.7,2529.5,0.19330742]
[1725306640581,7.90619,2529.7,2529.5,0.19330742]
[1725306641112,3.95319,2529.6,2529.5,0.19330742]
[1725306641692,3.95319,2529.6,2529.2,6.35261]
[1725306641900,3.95319,2529.6,2529.5,0.19330742]
[1725306642201,3.95304,2529.7,2529.5,0.19330742]
[1725306642379,3.95304,2529.7,2529.3,3.95361]
[1725306642988,3.95304,2529.7,2529.2,10.30623]
[1725306644005,3.0,2530.2,2529.2,10.30623]
[1725306644006,6.24743,2530.4,2529.9,3.95263]
[1725306644206,2.2954,2530.4,2530.0,3.95247]
[1725306644408,6.24738,2530.4,2529.9,6.35143]
[1725306645003,3.95211,2530.3,2529.9,3.95263]
[1725306645226,7.90429,2530.3,2529.9,3.95263]
[1725306645430,3.95211,2530.3,2529.9,3.95263]
[1725306645726,7.9043,2530.3,2529.9,3.95263]
[1725306645892,3.95211,2530.3,2529.9,3.95263]
[1725306646285,7.9043,2530.3,2529.8,3.95285]
[1725306648223,3.95226,2530.2,2529.7,7.16283691]
[1725306648419,3.95226,2530.2,2529.7,11.11579691]
[1725306648842,3.95226,2530.2,2529.7,7.16283691]
[1725306649511,3.95226,2530.2,2529.7,11.11580691]
[1725306649821,3.95226,2530.2,2529.7,7.16283691]
[1725306651139,3.95253,2530.1,2529.7,3.20993691]
[1725306651638,3.95253,2530.1,2529.7,2.3988]
[1725306651937,6.2348,2530.1,2529.6,3.95308]
[1725306652549,3.9525,2530.1,2529.6,3.95308]
[1725306652750,5.2823,2530.0,2529.5,15.18642]
[1725306652950,5.2823,2530.0,2529.6,3.95318]
[1725306653140,5.2823,2530.0,2529.6,4.14657725]
[1725306655057,6.601025,2530.0,2529.6,0.19339725]
[1725306655272,3.95303,2529.7,2529.6,0.19339725]
[1725306656355,3.95288,2529.8,2529.6,0.19348664]
[1725306656558,3.95249,2530.1,2529.6,3.95319]
[1725306656731,3.95268,2530.0,2529.7,0.19350633]
[1725306657139,3.95268,2530.0,2529.5,6.26687]
[1725306657343,3.95268,2530.0,2529.8,0.19341748]
[1725306657545,3.95268,2530.0,2529.5,6.26687]
[1725306657753,3.95268,2530.0,2529.9,0.19333502]
[1725306657977,3.95268,2530.0,2529.6,1.19799491]
[1725306658129,3.95268,2530.0,2529.9,0.19333502]
[1725306658333,3.9528,2529.9,2529.4,3.95341]
[1725306658575,10.18758,2530.0,2529.9,0.19333502]
[1725306658897,3.95294,2529.8,2529.3,6.26724]
[1725306659042,3.95294,2529.8,2529.3,2.3136]
[1725306659247,3.9531,2529.7,2529.3,2.3136]
[1725306661528,3.95294,2529.8,2529.3,6.26723]
[1725306661733,3.95294,2529.8,2529.3,10.28216556]
[1725306661968,3.95294,2529.8,2529.3,6.26723]
[1725306662470,6.23499,2530.0,2529.5,3.95328]
[1725306662471,3.95274,2529.9,2529.5,3.95328]
[1725306662676,2.2823,2530.3,2529.6,6.26666]
[1725306662829,3.95185,2530.5,2529.9,3.95258]
[1725306663034,3.95185,2530.5,2530.1,2.3136]
[1725306663232,7.90374,2530.5,2530.1,2.3136]
[1725306663449,3.95198,2530.4,2529.9,7.11630992]
[1725306664374,3.95198,2530.4,2530.0,0.71163099]
[1725306664746,3.95185,2530.5,2530.0,0.71163099]
[1725306664947,3.0,2530.4,2530.0,0.71163099]
[1725306668269,3.0,2530.4,2530.1,0.19319567]
[1725306671679,3.0,2530.4,2530.1,4.14558567]
[1725306679477,3.95225,2530.2,2530.1,0.19319567]
[1725306679781,3.95244,2530.1,2529.7,7.28]
[1725306680612,3.95225,2530.2,2529.7,11.23303]
[1725306680914,3.95225,2530.2,2529.7,15.1859]
[1725306681322,3.95225,2530.2,2529.7,11.23294]
[1725306681522,6.3556,2530.3,2529.9,3.9527]
[1725306682375,6.3556,2530.3,2529.7,7.28]
[1725306682376,6.35585,2530.2,2529.7,7.28]
[1725306682580,3.95248,2530.1,2529.7,7.28]
[1725306683225,3.95248,2530.1,2529.8,0.19304078]
[1725306683376,5.4035,2530.4,2529.8,3.65565586]
[1725306683717,3.0,2530.3,2530.0,3.95249]
[1725306684160,5.4035,2530.4,2530.1,0.19276788]
[1725306684457,12.22661296,2530.4,2530.1,0.19276788]
[1725306684663,7.9045,2530.2,2530.1,0.19276788]
[1725306684959,7.9045,2530.2,2529.7,7.28]
[1725306685118,3.95225,2530.2,2530.1,0.19274873]
[1725306685319,6.95225,2530.2,2529.7,7.28]
[1725306685519,3.95225,2530.2,2529.8,0.1929961]
[1725306685743,5.45900491,2530.2,2529.6,7.90615]
[1725306685944,5.45900491,2530.2,2529.9,0.19291363]
[1725306686142,5.45900491,2530.2,2529.6,7.90615]
[1725306686454,13.33492,2530.1,2530.0,0.19283118]
[1725306686654,3.95278,2529.9,2529.4,4.34979]
[1725306686862,3.0,2529.8,2529.4,0.3964]
[1725306687075,3.9531,2529.7,2529.4,0.3964]
[1725306687938,3.9531,2529.7,2529.3,4.35004]
[1725306690069,3.9531,2529.7,2529.3,3.95364]
[1725306693280,9.383,2529.8,2529.3,3.95364]
[1725306697148,9.383,2529.8,2529.2,3.9537]
[1725306697149,3.95306,2529.7,2529.2,3.9537]
[1725306697394,4.89136,2529.7,2529.2,3.9537]
[1725306697591,4.89136,2529.7,2529.1,3.95395]
[1725306697592,3.9533,2529.6,2529.1,3.95395]
[1725306698278,3.9533,2529.6,2529.2,0.19416783]
[1725306703478,6.44538,2529.5,2529.2,0.19416783]
[1725306703820,2.492,2529.5,2529.2,0.19416783]
[1725306704685,6.44538,2529.5,2529.2,0.19416783]
[1725306705305,3.95353,2529.4,2529.2,0.19416783]
[1725306705510,3.95353,2529.4,2529.0,3.9541]
[1725306705997,3.95353,2529.4,2529.1,0.19442917]
[1725306706812,3.95367,2529.3,2529.1,0.19442917]
[1725306707281,3.95367,2529.3,2528.9,4.35068]
[1725306707482,3.95367,2529.3,2529.2,0.19444247]
[1725306708030,3.95367,2529.3,2528.9,4.35068]
[1725306708178,3.95367,2529.3,2529.2,0.19444247]
[1725306708516,3.95367,2529.3,2528.9,4.35068]
[1725306708715,3.95367,2529.3,2529.2,0.19444247]
[1725306708920,3.95367,2529.3,2528.9,4.35068]
[1725306709099,3.95367,2529.3,2529.2,0.19444247]
[1725306709304,3.95367,2529.3,2528.9,6.145763]
[1725306709478,3.95351,2529.4,2529.2,0.19444247]
[1725306709675,3.95351,2529.4,2529.0,6.31986]
[1725306709882,3.95351,2529.4,2529.3,0.19435997]
[1725306710124,3.95351,2529.4,2529.1,1.2465623]
[1725306710286,6.44536,2529.5,2529.3,0.19435997]
[1725306710486,6.44536,2529.5,2529.2,0.19444247]
[1725306710792,6.44536,2529.5,2529.3,0.19435997]
[1725306711010,3.9535,2529.4,2529.3,0.19435997]
[1725306711233,6.44536,2529.5,2529.0,10.27391]
[1725306711234,6.44535,2529.5,2529.0,10.27391]
[1725306711516,3.95335,2529.5,2529.3,0.19435997]
[1725306711677,3.95335,2529.5,2529.0,8.2944243]
[1725306711884,3.95335,2529.5,2529.4,0.19427747]
[1725306712085,3.95335,2529.5,2529.0,6.31985]
[1725306712334,6.3132,2529.7,2529.4,0.19427747]
[1725306712621,6.3132,2529.7,2529.5,0.19419498]
[1725306712797,3.95319,2529.6,2529.2,3.95379]
[1725306713198,3.95319,2529.6,2529.3,0.19447493]
[1725306713520,3.95319,2529.6,2529.2,3.95379]
[1725306713683,3.95319,2529.6,2529.4,0.19439244]
[1725306713884,3.95319,2529.6,2529.3,0.19447493]
[1725306714187,3.95319,2529.6,2529.4,0.19439244]
[1725306714188,6.31329,2529.6,2529.4,0.19439244]
[1725306714409,6.31329,2529.6,2529.2,3.95379]
[1725306714716,6.31329,2529.6,2529.5,0.19430995]
[1725306714921,6.31329,2529.6,2529.2,3.95379]
[1725306715120,6.31329,2529.6,2529.5,0.19430995]
[1725306715328,6.31329,2529.6,2529.2,3.95379]
[1725306715528,6.31329,2529.6,2529.5,0.19430995]
[1725306715700,6.31329,2529.6,2529.2,3.95379]
[1725306715900,6.31329,2529.6,2529.5,0.19430995]
[1725306716438,6.31329,2529.6,2529.2,3.95379]
[1725306716590,6.31329,2529.6,2529.5,0.19430995]
[1725306716791,6.31329,2529.6,2529.2,3.95379]
[1725306716993,6.31329,2529.6,2529.5,0.19430995]
[1725306717333,7.63992,2529.6,2529.2,3.95379]
[1725306717487,6.31329,2529.6,2529.5,0.19430995]
[1725306718131,6.31329,2529.6,2529.2,3.95379]
[1725306718728,6.31329,2529.6,2529.3,0.19447493]
[1725306718936,3.95319,2529.6,2529.3,0.19447493]
[1725306719096,3.95305,2529.7,2529.2,6.28022]
[1725306719297,3.95305,2529.7,2529.4,0.19439244]
[1725306719516,3.95305,2529.7,2529.3,0.19447493]
[1725306719698,3.95305,2529.7,2529.5,0.19430995]
[1725306719898,5.279666,2529.7,2529.4,0.19439244]
[1725306720119,5.279666,2529.7,2529.6,0.19422747]
[1725306720453,6.95305,2529.7,2529.6,0.19422747]
[1725306720597,6.95305,2529.7,2529.2,6.28022]
[1725306720803,6.95305,2529.7,2529.6,0.19422747]
[1725306721125,6.95305,2529.7,2529.2,6.28022]
[1725306721335,6.95305,2529.7,2529.6,0.19422747]
[1725306721497,8.279666,2529.7,2529.2,6.28022]
[1725306721697,6.95305,2529.7,2529.6,0.19422747]
[1725306721897,6.95305,2529.7,2529.2,6.28022]
[1725306722207,6.95305,2529.7,2529.2,10.23397]
[1725306722408,6.95305,2529.7,2529.3,0.19447493]
[1725306722597,6.95305,2529.7,2529.2,3.95372]
[1725306722797,6.95305,2529.7,2529.4,0.19439244]
[1725306723000,8.279666,2529.7,2529.2,3.95372]
[1725306723198,8.279666,2529.7,2529.5,0.19430995]
[1725306723507,8.279666,2529.7,2529.2,3.95372]
[1725306723728,8.279666,2529.7,2529.6,0.19418913]
[1725306723899,8.279666,2529.7,2529.2,3.95372]
[1725306724410,8.279666,2529.7,2529.3,0.1944366]
[1725306724614,8.279666,2529.7,2529.2,3.95372]
[1725306724933,8.279666,2529.7,2529.4,0.19435411]
[1725306725117,8.279666,2529.7,2529.2,3.95372]
[1725306725118,1.4592776,2529.6,2529.3,0.1944366]
[1725306725331,1.4592776,2529.6,2529.5,0.19427162]
[1725306725531,6.95305,2529.7,2529.4,0.19435411]
[1725306725737,6.95305,2529.7,2529.5,0.19427162]
[1725306726057,6.95305,2529.7,2529.2,3.95372]
[1725306726256,6.95305,2529.7,2529.6,0.19418913]
[1725306726413,8.45563291,2529.7,2529.2,3.95372]
[1725306726720,6.95305,2529.7,2529.6,0.19418913]
[1725306727344,6.95305,2529.7,2529.2,7.90747]
[1725306727549,6.95305,2529.7,2529.6,0.19418913]
[1725306727747,8.45563291,2529.7,2529.2,7.90747]
[1725306727950,6.95305,2529.7,2529.6,0.19418913]
[1725306728549,6.95305,2529.7,2529.3,3.95365]
[1725306728744,6.95305,2529.7,2529.6,0.19418913]
[1725306728954,8.45563291,2529.7,2529.3,3.95365]
[1725306729155,6.95305,2529.7,2529.6,0.19418913]
[1725306729362,6.95305,2529.7,2529.3,3.95365]
[1725306729517,3.0,2529.7,2529.3,3.95365]
[1725306729921,3.0,2529.7,2529.4,0.19435411]
[1725306733147,6.95303,2529.7,2529.4,0.19435411]
[1725306733728,3.95319,2529.6,2529.4,0.19435411]
[1725306734021,2.302,2529.5,2529.2,3.95381]
[1725306734529,2.302,2529.5,2529.0,4.35042]
[1725306734733,6.25547,2529.5,2529.0,4.35042]
[1725306734924,2.302,2529.4,2529.0,4.35042]
[1725306735254,5.600561,2529.5,2528.8,7.28]